bitfinex/quotes_BTCUSD_20220212
["timestamp","ask_amount","ask_price","bid_price","bid_amount"]
[1644627285523,0.20067681,42316.0,42312.0,0.40633251]
[1644627285723,0.25067681,42316.0,42312.0,0.07678651]
[1644627286127,0.20067681,42317.0,42313.0,0.329546]
[1644627286325,0.00047258,42316.0,42313.0,0.329546]
[1644627287369,0.20067681,42318.0,42313.0,0.329546]
[1644627287566,0.00047258,42317.0,42313.0,0.329546]
[1644627288367,0.20067681,42318.0,42313.0,0.329546]
[1644627288567,0.20067681,42317.0,42313.0,0.329546]
[1644627288769,0.20067681,42316.0,42313.0,0.329546]
[1644627290272,0.20114939,42317.0,42313.0,0.329546]
[1644627290873,0.20067681,42317.0,42313.0,0.329546]
[1644627291123,0.20114938,42317.0,42313.0,0.329546]
[1644627292018,0.20067681,42317.0,42313.0,0.329546]
[1644627292215,0.20114938,42317.0,42313.0,0.329546]
[1644627292420,0.00047257,42317.0,42312.0,0.07678651]
[1644627292717,0.00047257,42317.0,42313.0,0.329546]
[1644627293216,0.30083162,42319.0,42313.0,0.329546]
[1644627293616,0.00047257,42317.0,42313.0,0.329546]
[1644627294418,0.30083162,42319.0,42312.0,0.07678651]
[1644627294618,0.00047257,42317.0,42311.0,0.00113724]
[1644627294874,0.25083162,42315.0,42311.0,0.00113724]
[1644627295074,0.52504377,42314.0,42311.0,0.00113724]
[1644627295470,0.52504377,42314.0,42312.0,0.329546]
[1644627295669,0.47308921,42314.0,42311.0,0.00113724]
[1644627296373,0.25083162,42313.0,42312.0,0.329546]
[1644627296570,0.32897702,42313.0,42312.0,0.329546]
[1644627297675,0.42897702,42313.0,42312.0,0.329546]
[1644627298073,0.450234,42313.0,42312.0,0.23627023]
[1644627298474,0.36041274,42315.0,42312.0,0.23627023]
[1644627298720,0.2008105,42313.0,42312.0,0.23627023]
[1644627299120,0.2008105,42314.0,42312.0,0.23627023]
[1644627299919,0.2008105,42314.0,42313.0,0.07443676]
[1644627300120,0.2008105,42314.0,42313.0,0.40398276]
[1644627300821,0.25100167,42315.0,42314.0,0.329558]
[1644627302578,0.30100167,42316.0,42314.0,0.329558]
[1644627302778,0.25100167,42315.0,42314.0,0.329558]
[1644627303580,0.05,42316.0,42314.0,0.329558]
[1644627303779,0.10046991,42317.0,42314.0,0.329558]
[1644627303980,0.1,42317.0,42314.0,0.329558]
[1644627304181,0.30099794,42317.0,42314.0,0.329558]
[1644627304382,0.67350603,42316.0,42314.0,0.329558]
[1644627304582,0.30132771,42315.0,42311.0,0.00113724]
[1644627304884,0.62411606,42314.0,42311.0,0.00113724]
[1644627305082,0.62411606,42314.0,42312.0,0.329558]
[1644627305083,0.30132771,42313.0,42312.0,0.329558]
[1644627305281,0.35132771,42313.0,42312.0,0.329558]
[1644627305882,0.05,42313.0,42311.0,0.00113724]
[1644627306124,0.35133509,42313.0,42311.0,0.00113724]
[1644627306317,0.57765531,42312.0,42311.0,0.00113724]
[1644627306517,0.57765531,42312.0,42311.0,0.33069524]
[1644627306718,0.30133509,42312.0,42311.0,0.00113724]
[1644627307118,0.05,42313.0,42311.0,0.33069524]
[1644627307119,0.35133509,42313.0,42311.0,0.33069524]
[1644627307318,0.35133509,42313.0,42312.0,0.329558]
[1644627307519,0.30133509,42313.0,42311.0,0.00113724]
[1644627307920,0.30133509,42313.0,42312.0,0.329558]
[1644627308123,0.30133509,42314.0,42311.0,0.00113724]
[1644627308323,0.30133509,42313.0,42311.0,0.00113724]
[1644627308521,0.30142449,42312.0,42311.0,0.00113724]
[1644627308924,0.45116426,42313.0,42311.0,0.00113724]
[1644627309322,0.35116426,42312.0,42311.0,0.00113724]
[1644627309523,0.0473,42312.0,42311.0,0.00113724]
[1644627309721,0.44846426,42312.0,42311.0,0.00113724]
[1644627310173,0.0973,42312.0,42311.0,0.00113724]
[1644627311173,0.37519541,42312.0,42311.0,0.00113724]
[1644627311373,0.72215181,42312.0,42311.0,0.00113724]
[1644627311572,0.0973,42312.0,42311.0,0.00113724]
[1644627311973,0.39870313,42312.0,42311.0,0.00113724]
[1644627312175,0.35140313,42312.0,42311.0,0.33069524]
[1644627312475,0.30140313,42313.0,42311.0,0.00113724]
[1644627312675,0.30140313,42314.0,42312.0,0.329558]
[1644627312973,0.40187394,42314.0,42312.0,0.329558]
[1644627313627,0.37278283,42313.0,42311.0,0.00113724]
[1644627313828,0.30140313,42312.0,42311.0,0.00113724]
[1644627314023,0.30140313,42312.0,42311.0,0.33069524]
[1644627314224,0.30140313,42312.0,42311.0,0.00113724]
[1644627314624,0.30140313,42312.0,42311.0,0.33069524]
[1644627314824,0.30140313,42312.0,42311.0,0.00113724]
[1644627315225,0.30140313,42312.0,42311.0,0.33069524]
[1644627315427,0.37278283,42313.0,42311.0,0.00113724]
[1644627315825,0.30140313,42312.0,42311.0,0.00113724]
[1644627316029,0.6499605,42313.0,42311.0,0.00113724]
[1644627316827,0.30140313,42312.0,42311.0,0.00113724]
[1644627317229,0.35140313,42312.0,42311.0,0.00113724]
[1644627318472,0.35140313,42312.0,42311.0,0.33069524]
[1644627318675,0.35140313,42312.0,42311.0,0.00113724]
[1644627320373,0.35140313,42312.0,42311.0,0.33069524]
[1644627320374,0.30140313,42312.0,42311.0,0.33069524]
[1644627320573,0.30140313,42313.0,42312.0,0.329558]
[1644627320774,0.30140313,42313.0,42311.0,0.00113724]
[1644627320973,0.30140313,42313.0,42312.0,0.329558]
[1644627321224,0.35140313,42313.0,42312.0,0.329558]
[1644627321421,0.35140313,42313.0,42311.0,0.00113724]
[1644627322322,0.30140313,42312.0,42311.0,0.00113724]
[1644627322523,0.30140313,42312.0,42311.0,0.33069524]
[1644627322721,0.30140313,42312.0,42311.0,0.00113724]
[1644627322922,0.30140313,42312.0,42311.0,0.33069524]
[1644627323121,0.30140313,42312.0,42311.0,0.00113724]
[1644627323324,0.30140313,42312.0,42311.0,0.33069524]
[1644627323522,0.30140313,42312.0,42311.0,0.00113724]
[1644627323724,0.30140313,42312.0,42311.0,0.33069524]
[1644627323922,0.30140313,42312.0,42311.0,0.00113724]
[1644627324122,0.30140313,42312.0,42311.0,0.33069524]
[1644627324325,0.30140313,42312.0,42311.0,0.00113724]
[1644627324523,0.30140313,42312.0,42311.0,0.4099293]
[1644627324723,0.30140313,42312.0,42311.0,0.00113724]
[1644627324971,0.30140313,42312.0,42311.0,0.33069524]
[1644627325176,0.05,42313.0,42311.0,0.00113724]
[1644627325373,0.05,42313.0,42312.0,0.329558]
[1644627325573,0.45163508,42314.0,42312.0,0.329558]
[1644627325774,0.45116426,42314.0,42311.0,0.00113724]
[1644627326574,0.45116426,42314.0,42312.0,0.329558]
[1644627327575,0.45116426,42314.0,42312.0,0.32949002]
[1644627331442,0.35116426,42313.0,42312.0,0.32949002]
[1644627333474,0.35116426,42313.0,42311.0,0.00113724]
[1644627333676,0.35116426,42313.0,42312.0,0.329562]
[1644627333877,0.35116426,42313.0,42311.0,0.00113724]
[1644627334876,0.35116426,42313.0,42312.0,0.329562]
[1644627335077,0.35116426,42313.0,42311.0,0.00113724]
[1644627335276,0.35116426,42313.0,42312.0,0.329562]
[1644627335477,0.35116426,42313.0,42311.0,0.00113724]
[1644627335678,0.35116426,42313.0,42312.0,0.329562]
[1644627335876,0.35116426,42313.0,42311.0,0.00113724]
[1644627336132,0.11918895,42313.0,42312.0,0.329562]
[1644627336327,0.11918895,42313.0,42311.0,0.00113724]
[1644627336527,0.3518667,42312.0,42311.0,0.00113724]
[1644627336732,0.3518667,42312.0,42311.0,0.33069924]
[1644627336929,0.3518667,42312.0,42311.0,0.00113724]
[1644627337129,0.3518667,42312.0,42311.0,0.33069924]
[1644627337328,0.3518667,42312.0,42311.0,0.00113724]
[1644627337529,0.3518667,42312.0,42311.0,0.33069924]
[1644627337729,0.3518667,42312.0,42311.0,0.00113724]
[1644627337930,0.3518667,42312.0,42311.0,0.33069924]
[1644627338129,0.3518667,42312.0,42311.0,0.00113724]
[1644627338329,0.3518667,42312.0,42311.0,0.33069924]
[1644627338529,0.3518667,42312.0,42311.0,0.00113724]
[1644627338729,0.3518667,42312.0,42311.0,0.33069924]
[1644627338929,0.3518667,42312.0,42311.0,0.00113724]
[1644627339130,0.11918895,42313.0,42311.0,0.33069924]
[1644627339335,0.11918895,42313.0,42311.0,0.00113724]
[1644627339533,0.11918895,42313.0,42312.0,0.329562]
[1644627339972,0.35191114,42313.0,42312.0,0.329562]
[1644627340373,0.12634013,42319.0,42312.0,0.55496216]
[1644627340374,0.35191114,42314.0,42312.0,0.55496216]
[1644627340573,0.35191114,42313.0,42312.0,0.22540016]
[1644627340771,0.35191114,42313.0,42309.0,0.08911055]
[1644627340974,0.30166385,42311.0,42310.0,0.329562]
[1644627341175,0.35191114,42313.0,42310.0,0.329562]
[1644627341574,0.35238196,42313.0,42310.0,0.329562]
[1644627341777,0.30166957,42311.0,42310.0,0.329562]
[1644627341978,0.35238196,42313.0,42310.0,0.329562]
[1644627342174,0.30167137,42311.0,42310.0,0.329562]
[1644627342375,0.30167083,42311.0,42310.0,0.329562]
[1644627342676,0.30167083,42311.0,42310.0,0.21260677]
[1644627343724,0.35191114,42313.0,42310.0,0.21260677]
[1644627343926,0.35238196,42313.0,42310.0,0.21260677]
[1644627344323,0.35238196,42313.0,42309.0,0.08911055]
[1644627344530,0.35238196,42313.0,42310.0,0.329568]
[1644627344924,0.35191114,42313.0,42310.0,0.329568]
[1644627345325,0.35191114,42312.0,42310.0,0.329568]
[1644627346523,0.35191114,42312.0,42311.0,0.329568]
[1644627347378,0.35198153,42312.0,42311.0,0.329568]
[1644627347978,0.16048427,42312.0,42311.0,0.329568]
[1644627348479,0.16048427,42313.0,42309.0,0.08411055]
[1644627348678,0.35214383,42311.0,42310.0,0.329568]
[1644627352124,0.16053894,42312.0,42310.0,0.329568]
[1644627352327,0.16053894,42311.0,42310.0,0.329568]
[1644627352726,0.35215933,42311.0,42310.0,0.329568]
[1644627353723,0.17075967,42312.0,42310.0,0.329568]
[1644627354728,0.35216485,42311.0,42310.0,0.329568]
[1644627354999,0.17076221,42311.0,42310.0,0.329568]
[1644627355194,0.17076221,42312.0,42309.0,0.08411055]
[1644627355395,0.17076221,42311.0,42310.0,0.329572]
[1644627355597,0.35216447,42311.0,42310.0,0.329572]
[1644627356096,0.35216447,42311.0,42307.0,0.237915]
[1644627356296,0.30185773,42309.0,42307.0,0.237915]
[1644627356504,0.30185773,42309.0,42306.0,0.00021721]
[1644627356796,0.30185773,42309.0,42305.0,0.00021721]
[1644627356998,0.25155593,42306.0,42305.0,0.07824872]
[1644627357198,0.25155593,42306.0,42305.0,0.31601551]
[1644627357199,0.25155147,42306.0,42305.0,0.31601551]
[1644627357400,0.30185773,42307.0,42305.0,0.31601551]
[1644627357702,0.30185773,42307.0,42306.0,0.329552]
[1644627358297,0.30185773,42307.0,42304.0,0.23845989]
[1644627358498,0.30185773,42306.0,42304.0,0.23845989]
[1644627359328,0.30185773,42306.0,42304.0,0.237989]
[1644627359527,0.30185773,42307.0,42303.0,0.33004289]
[1644627359727,0.35216447,42309.0,42303.0,0.33004289]
[1644627359728,0.2515549,42304.0,42303.0,0.33004289]
[1644627359927,0.2515549,42304.0,42303.0,0.41435573]
[1644627360529,0.2515549,42304.0,42303.0,0.41388484]
[1644627361130,0.2515549,42305.0,42303.0,0.41388484]
[1644627361329,0.2515549,42305.0,42303.0,0.51410205]
[1644627361533,0.2515549,42305.0,42303.0,0.51388484]
[1644627363877,0.2515549,42305.0,42303.0,0.41388484]
[1644627364779,0.2515549,42306.0,42303.0,0.41388484]
[1644627364976,0.2515549,42306.0,42303.0,0.41410205]
[1644627365583,0.2515549,42306.0,42303.0,0.41388484]
[1644627365977,0.2515549,42306.0,42303.0,0.41410205]
[1644627366727,0.2515549,42305.0,42303.0,0.41388484]
[1644627366928,0.2515549,42305.0,42303.0,0.41410205]
[1644627367126,0.2515549,42305.0,42303.0,0.41388484]
[1644627370787,0.2515549,42305.0,42303.0,0.51388484]
[1644627371483,0.30185773,42308.0,42303.0,0.51388484]
[1644627371484,0.2515549,42306.0,42303.0,0.51388484]
[1644627371682,0.2515549,42306.0,42303.0,0.51410205]
[1644627372685,0.25148184,42306.0,42303.0,0.41410205]
[1644627372885,0.25147774,42305.0,42303.0,0.41410205]
[1644627373086,0.30185773,42308.0,42303.0,0.41388484]
[1644627373288,0.25147461,42306.0,42303.0,0.41410205]
[1644627373485,0.35263665,42310.0,42303.0,0.41410205]
[1644627373486,0.30185773,42307.0,42303.0,0.41410205]
[1644627373931,0.30185773,42307.0,42303.0,0.41388484]
[1644627374128,0.25147048,42305.0,42303.0,0.41388484]
[1644627374329,0.30185773,42307.0,42303.0,0.41410205]
[1644627374530,0.30185773,42307.0,42303.0,0.41388484]
[1644627374730,0.30185773,42307.0,42303.0,0.41410205]
[1644627374930,0.25147208,42305.0,42303.0,0.41410205]
[1644627375131,0.30185773,42307.0,42303.0,0.414357]
[1644627375531,0.25146913,42305.0,42303.0,0.414357]
[1644627375731,0.30185773,42307.0,42303.0,0.414357]
[1644627375933,0.25144884,42305.0,42303.0,0.414357]
[1644627376131,0.30185773,42307.0,42303.0,0.41388484]
[1644627376331,0.25141979,42305.0,42303.0,0.414357]
[1644627376531,0.30185773,42307.0,42303.0,0.40957421]
[1644627376730,0.25141208,42305.0,42303.0,0.409357]
[1644627376931,0.25141032,42305.0,42303.0,0.40957421]
[1644627377134,0.30185773,42307.0,42303.0,0.409357]
[1644627377379,0.30185773,42307.0,42303.0,0.40888484]
[1644627377580,0.25140676,42305.0,42303.0,0.40888484]
[1644627377779,0.30185773,42307.0,42303.0,0.40910205]
[1644627377980,0.30185773,42307.0,42303.0,0.40888484]
[1644627378179,0.30185773,42307.0,42303.0,0.40910205]
[1644627378682,0.25140315,42305.0,42303.0,0.40935702]
[1644627378982,0.19250488,42309.0,42303.0,0.40935702]
[1644627378983,0.2513946,42304.0,42303.0,0.40935702]
[1644627379582,0.30185773,42306.0,42303.0,0.40935702]
[1644627379786,0.30185773,42306.0,42303.0,0.40888484]
[1644627379982,0.25139217,42304.0,42303.0,0.40888484]
[1644627380182,0.30185773,42306.0,42303.0,0.40888484]
[1644627380384,0.25139067,42304.0,42303.0,0.40888484]
[1644627380585,0.30185773,42306.0,42303.0,0.40910205]
[1644627380785,0.25139021,42304.0,42303.0,0.40888484]
[1644627380990,0.30185773,42306.0,42303.0,0.40888484]
[1644627381231,0.25139147,42304.0,42303.0,0.40888484]
[1644627381431,0.25138367,42304.0,42303.0,0.40910205]
[1644627381634,0.25138136,42304.0,42303.0,0.40888484]
[1644627381829,0.30185773,42306.0,42303.0,0.40888484]
[1644627382030,0.25138171,42304.0,42303.0,0.40910205]
[1644627382230,0.30185773,42306.0,42304.0,0.53684281]
[1644627382430,0.30185773,42306.0,42305.0,0.237989]
[1644627386681,0.30185773,42307.0,42305.0,0.237989]
[1644627386883,0.30185773,42307.0,42305.0,0.23820621]
[1644627387081,0.30185773,42307.0,42305.0,0.237989]
[1644627388740,0.30185773,42306.0,42305.0,0.237989]
[1644627388936,0.30185773,42306.0,42305.0,0.23820621]
[1644627389137,0.30185773,42306.0,42305.0,0.237989]
[1644627389836,0.30185773,42307.0,42305.0,0.237989]
[1644627390036,0.30185773,42306.0,42305.0,0.23820621]
[1644627390236,0.30185773,42306.0,42305.0,0.237989]
[1644627391037,0.25152388,42306.0,42305.0,0.52488953]
[1644627391638,0.25152388,42306.0,42305.0,0.62488953]
[1644627391837,0.25152388,42307.0,42305.0,0.337989]
[1644627392037,0.25152388,42307.0,42305.0,0.33820621]
[1644627392237,0.25152388,42307.0,42305.0,0.337989]
[1644627392678,0.30185773,42309.0,42305.0,0.337989]
[1644627392979,0.30185773,42309.0,42305.0,0.33820621]
[1644627393282,0.00044224,42310.0,42306.0,0.059109]
[1644627393480,0.00044224,42310.0,42307.0,0.324537]
[1644627393682,0.00044224,42310.0,42308.0,0.0473]
[1644627393884,0.00044224,42310.0,42309.0,0.237963]
[1644627394081,0.3605,42320.0,42318.0,0.00360268]
[1644627394082,0.35216447,42320.0,42318.0,0.00360268]
[1644627394281,0.35216447,42321.0,42319.0,0.44727131]
[1644627394586,0.35216447,42322.0,42319.0,0.38818331]
[1644627394880,0.35216447,42322.0,42320.0,0.329588]
[1644627395483,0.19048992,42325.0,42320.0,0.329588]
[1644627395484,0.35216447,42323.0,42320.0,0.329588]
[1644627396535,0.35216447,42324.0,42320.0,0.329588]
[1644627396731,0.35267464,42324.0,42319.0,0.06374231]
[1644627397133,0.35216447,42323.0,42319.0,0.06374231]
[1644627397532,0.35267464,42324.0,42319.0,0.06374231]
[1644627397732,0.35216447,42324.0,42319.0,0.06374231]
[1644627398132,0.00046948,42323.0,42319.0,0.06374231]
[1644627398532,0.00046948,42323.0,42321.0,0.329588]
[1644627398738,0.35263395,42323.0,42319.0,0.06374231]
[1644627398935,0.19048992,42325.0,42319.0,0.06374231]
[1644627398936,0.35216447,42324.0,42319.0,0.06374231]
[1644627399136,0.35263394,42324.0,42319.0,0.06374231]
[1644627399535,0.00046947,42324.0,42319.0,0.06374231]
[1644627399734,0.00046947,42324.0,42320.0,0.329588]
[1644627400283,0.00046947,42324.0,42319.0,0.06374231]
[1644627401085,0.00046947,42324.0,42320.0,0.329588]
[1644627401287,0.30159034,42323.0,42319.0,0.06374231]
[1644627401486,0.30159034,42323.0,42320.0,0.329588]
[1644627402088,0.30159034,42323.0,42321.0,0.32958]
[1644627402287,0.35263394,42324.0,42321.0,0.32958]
[1644627402489,0.30159344,42322.0,42321.0,0.32958]
[1644627402888,0.35216447,42325.0,42321.0,0.32958]
[1644627402889,0.30159344,42324.0,42321.0,0.32958]
[1644627403088,0.30159344,42322.0,42316.0,0.00360268]
[1644627403287,0.30159344,42322.0,42317.0,0.329588]
[1644627403939,0.30206573,42322.0,42317.0,0.329588]
[1644627404937,0.30159344,42322.0,42317.0,0.329588]
[1644627405237,0.30206573,42322.0,42317.0,0.329588]
[1644627406044,0.30206573,42322.0,42318.0,0.00360268]
[1644627406244,0.30159344,42322.0,42319.0,0.232764]
[1644627406442,0.30206549,42322.0,42319.0,0.232764]
[1644627407241,0.30206549,42322.0,42321.0,0.06500563]
[1644627407492,0.30159344,42322.0,42321.0,0.39456063]
[1644627407692,0.30159344,42322.0,42321.0,0.06500563]
[1644627407892,0.30159344,42322.0,42321.0,0.39459363]
[1644627408096,0.00047205,42323.0,42321.0,0.6985603]
[1644627408295,0.00047205,42323.0,42322.0,0.52950687]
[1644627408496,0.41579344,42328.0,42322.0,0.52950687]
[1644627408793,0.00047204,42325.0,42322.0,0.52950687]
[1644627408994,0.00047204,42325.0,42323.0,0.31238287]
[1644627409195,0.00047204,42325.0,42324.0,0.656804]
[1644627409395,0.00047204,42325.0,42324.0,0.704104]
[1644627409797,0.30159344,42330.0,42324.0,0.704104]
[1644627409996,0.00047206,42327.0,42324.0,0.704104]
[1644627410996,0.00027751,42328.0,42324.0,0.76318301]
[1644627411237,0.00047205,42328.0,42326.0,0.291768]
[1644627411536,0.00047205,42328.0,42327.0,0.329538]
[1644627412138,0.00027751,42331.0,42327.0,0.329538]
[1644627412336,0.30159344,42332.0,42330.0,0.06767573]
[1644627412536,0.30159344,42332.0,42331.0,0.232657]
[1644627412739,0.0002775,42333.0,42331.0,0.232657]
[1644627412935,0.35244197,42334.0,42331.0,0.232657]
[1644627413136,0.35216447,42334.0,42330.0,0.06767573]
[1644627413338,0.35216447,42334.0,42331.0,0.329588]
[1644627413538,0.35244197,42334.0,42331.0,0.329588]
[1644627413737,0.35216447,42334.0,42331.0,0.329588]
[1644627414439,0.35291399,42335.0,42331.0,0.329588]
[1644627414641,0.35244197,42336.0,42330.0,0.06767573]
[1644627414892,0.35263649,42335.0,42330.0,0.06767573]
[1644627415093,0.35291399,42335.0,42330.0,0.06767573]
[1644627415296,0.35263649,42335.0,42330.0,0.06767573]
[1644627415794,0.35216447,42335.0,42330.0,0.06767573]
[1644627415994,0.35263649,42335.0,42330.0,0.06767573]
[1644627416294,0.35263649,42335.0,42331.0,0.329588]
[1644627416695,0.00047202,42335.0,42331.0,0.329588]
[1644627416894,0.0002775,42335.0,42331.0,0.329588]
[1644627417094,0.35244197,42336.0,42331.0,0.329588]
[1644627417397,0.00047202,42335.0,42331.0,0.329588]
[1644627417595,0.00047202,42335.0,42331.0,0.61876923]
[1644627417994,0.00047202,42335.0,42332.0,0.22308443]
[1644627418195,0.0002775,42337.0,42333.0,0.232557]
[1644627418397,0.0002775,42338.0,42336.0,0.19858764]
[1644627418648,0.30127983,42342.0,42337.0,0.51799018]
[1644627418839,0.00027747,42339.0,42337.0,0.51799018]
[1644627419039,0.30127983,42342.0,42337.0,0.51799018]
[1644627419040,0.3015573,42342.0,42337.0,0.232531]
[1644627419241,0.00027747,42341.0,42338.0,0.08908432]
[1644627419542,0.3020297,42342.0,42339.0,0.329426]
[1644627419739,0.30175223,42342.0,42339.0,0.329426]
[1644627420141,0.30127983,42341.0,42339.0,0.329426]
[1644627420344,0.3020297,42342.0,42339.0,0.329426]
[1644627420544,0.3170297,42343.0,42339.0,0.329426]
[1644627420740,0.31675223,42343.0,42339.0,0.329426]
[1644627420940,0.31675223,42343.0,42340.0,0.20833552]
[1644627420941,0.00047275,42342.0,42340.0,0.20833552]
[1644627421143,0.00047275,42342.0,42341.0,0.232505]
[1644627421344,0.00047275,42342.0,42341.0,0.1715854]
[1644627421742,0.03,42343.0,42341.0,0.1715854]
[1644627422787,0.03,42343.0,42338.0,0.08908432]
[1644627422988,0.03,42343.0,42339.0,0.329483]
[1644627424190,0.03,42343.0,42338.0,0.08908432]
[1644627424389,0.03,42343.0,42339.0,0.329483]
[1644627424591,0.03027747,42343.0,42339.0,0.329483]
[1644627425690,0.03,42343.0,42339.0,0.329483]
[1644627425891,0.03027747,42343.0,42339.0,0.329483]
[1644627426831,0.03,42343.0,42339.0,0.329483]
[1644627427032,0.03027747,42343.0,42339.0,0.329483]
[1644627428036,0.03,42343.0,42339.0,0.329483]
[1644627428236,0.03027747,42343.0,42339.0,0.329483]
[1644627429038,0.03027747,42343.0,42339.0,0.61616441]
[1644627429238,0.03,42343.0,42339.0,0.61616441]
[1644627429637,0.03027747,42343.0,42339.0,0.61616441]
[1644627430284,0.03,42343.0,42340.0,0.329483]
[1644627434641,0.03,42343.0,42342.0,0.085154]
[1644627434840,0.03,42343.0,42342.0,0.42744532]
[1644627435340,0.00051091,42345.0,42342.0,0.42744532]
[1644627435341,0.00078838,42345.0,42344.0,0.05244405]
[1644627435542,0.00051091,42345.0,42344.0,0.8010668]
[1644627435941,0.00051091,42345.0,42344.0,1.0191588]
[1644627436141,0.00027747,42348.0,42344.0,0.64728605]
[1644627436342,0.329483,42347.0,42345.0,0.07706509]
[1644627436540,0.329483,42347.0,42346.0,0.329483]
[1644627436541,0.0005109,42347.0,42346.0,0.329483]
[1644627436741,0.0005109,42347.0,42345.0,0.07706509]
[1644627436943,0.0005109,42347.0,42346.0,0.329483]
[1644627437388,0.01027747,42349.0,42346.0,0.329483]
[1644627437588,0.01051089,42349.0,42346.0,0.329483]
[1644627437790,0.01051089,42349.0,42346.0,0.429483]
[1644627438189,0.01051089,42349.0,42348.0,0.23358058]
[1644627438399,0.01051089,42349.0,42348.0,0.329483]
[1644627438592,0.01,42349.0,42348.0,0.329483]
[1644627438791,0.01,42349.0,42348.0,0.429483]
[1644627439792,0.01,42349.0,42348.0,0.185069]
[1644627440195,0.01,42349.0,42348.0,0.085069]
[1644627440394,0.01,42349.0,42348.0,0.42790312]
[1644627440792,0.01,42349.0,42348.0,0.53694712]
[1644627440998,0.01,42349.0,42348.0,0.67895777]
[1644627441251,0.01,42349.0,42348.0,0.62904774]
[1644627441449,0.01,42349.0,42348.0,0.67634774]
[1644627441650,0.01,42349.0,42348.0,0.72634774]
[1644627442148,0.01,42349.0,42348.0,0.68424712]
[1644627442348,0.01,42349.0,42348.0,0.63424712]
[1644627443149,0.01,42349.0,42348.0,0.58424712]
[1644627443350,0.01,42349.0,42348.0,0.52520312]
[1644627443750,0.01,42349.0,42348.0,0.57520312]
[1644627443952,0.01,42349.0,42348.0,0.63424612]
[1644627444351,0.01,42349.0,42348.0,0.68424612]
[1644627444551,0.01,42349.0,42348.0,0.63424612]
[1644627445488,0.01,42349.0,42348.0,0.68424612]
[1644627445885,0.01,42349.0,42348.0,0.69368612]
[1644627446088,0.01,42349.0,42348.0,0.68424612]
[1644627446486,0.01,42349.0,42348.0,0.58424612]
[1644627447987,0.01,42349.0,42348.0,0.68424612]
[1644627449839,0.01,42349.0,42348.0,0.69368712]
[1644627451542,0.01,42349.0,42348.0,0.64368712]
[1644627451742,0.01,42349.0,42348.0,0.59368712]
[1644627455587,0.01,42349.0,42348.0,0.62780022]
[1644627457037,0.01,42349.0,42348.0,0.3349661]
[1644627457343,0.01,42349.0,42348.0,0.14181]
[1644627457539,0.01,42349.0,42348.0,0.24181]
[1644627458743,0.01,42349.0,42348.0,0.09451]
[1644627459340,0.005,42349.0,42348.0,0.09451]
[1644627461796,0.005,42349.0,42348.0,0.19194837]
[1644627461994,0.005,42349.0,42348.0,0.153554]
[1644627465442,0.00078835,42351.0,42349.0,0.36485057]
[1644627465644,0.00051088,42351.0,42350.0,0.329467]
[1644627465843,0.00051088,42351.0,42350.0,0.429467]
[1644627466346,0.00027747,42358.0,42352.0,0.118087]
[1644627466543,0.00051087,42353.0,42352.0,0.118087]
[1644627466843,0.00051087,42353.0,42352.0,0.75797798]
[1644627467242,0.00051087,42353.0,42352.0,0.85797798]
[1644627467489,0.00027747,42358.0,42352.0,0.85797798]
[1644627467688,0.00051086,42355.0,42353.0,0.329472]
[1644627467889,0.00051086,42355.0,42353.0,0.30873715]
[1644627468692,0.00027747,42358.0,42353.0,0.30873715]
[1644627468895,0.00051086,42356.0,42353.0,0.30873715]
[1644627469090,0.00051086,42356.0,42353.0,0.20873715]
[1644627469291,0.00051086,42356.0,42353.0,0.30873715]
[1644627469793,0.31111542,42359.0,42353.0,0.30873715]
[1644627469992,0.00051085,42357.0,42353.0,0.30873715]
[1644627470192,0.00078843,42357.0,42353.0,0.30873715]
[1644627470491,0.00051085,42357.0,42353.0,0.30873715]
[1644627470991,0.00027758,42358.0,42353.0,0.30873715]
[1644627471239,0.00051085,42357.0,42353.0,0.30873715]
[1644627471444,0.00051085,42357.0,42353.0,0.20873715]
[1644627471639,0.00051085,42357.0,42353.0,0.30873715]
[1644627472244,0.00027758,42358.0,42353.0,0.30873715]
[1644627472445,0.01,42359.0,42354.0,0.17710471]
[1644627472446,0.00051085,42357.0,42354.0,0.17710471]
[1644627472643,0.00051085,42357.0,42355.0,0.085019]
[1644627472843,0.00051085,42357.0,42356.0,0.059028]
[1644627473041,0.00051085,42357.0,42356.0,0.267753]
[1644627473443,0.01027758,42359.0,42356.0,0.267753]
[1644627473641,0.01027758,42359.0,42357.0,0.085013]
[1644627473642,0.01051085,42359.0,42357.0,0.085013]
[1644627474245,0.01051085,42359.0,42357.0,0.135013]
[1644627474644,0.01051085,42359.0,42357.0,0.20306519]
[1644627474645,0.01,42359.0,42357.0,0.20306519]
[1644627474889,0.01,42359.0,42358.0,0.208714]
[1644627481955,0.2304971,42359.0,42358.0,0.208714]
[1644627482252,0.53161252,42359.0,42358.0,0.208714]
[1644627483094,0.2304971,42359.0,42358.0,0.208714]
[1644627484501,0.01,42359.0,42358.0,0.208714]
[1644627487944,0.01,42359.0,42358.0,0.16603521]
[1644627492505,0.31111542,42359.0,42358.0,0.16603521]
[1644627493104,0.30611542,42359.0,42358.0,0.16603521]
[1644627495147,0.005,42359.0,42358.0,0.16603521]
[1644627495952,0.005,42359.0,42348.0,0.009441]
[1644627495953,0.0523,42359.0,42348.0,0.009441]
[1644627496153,0.05,42352.0,42348.0,0.009441]
[1644627496352,0.67815911,42351.0,42348.0,0.009441]
[1644627496550,0.67815911,42351.0,42338.0,0.18770017]
[1644627496551,0.44870911,42351.0,42338.0,0.18770017]
[1644627496750,0.34410708,42351.0,42340.0,0.23621248]
[1644627497389,0.69575105,42351.0,42350.0,0.201983]
[1644627497592,0.39410708,42351.0,42349.0,0.21198699]
[1644627497790,0.39410708,42351.0,42350.0,0.201982]
[1644627497791,0.1473,42351.0,42350.0,0.201982]
[1644627497988,0.1473,42351.0,42349.0,0.21198699]
[1644627498190,0.30143041,42350.0,42349.0,0.21198699]
[1644627498390,0.63323595,42350.0,42349.0,0.21198699]
[1644627498789,0.86472605,42350.0,42349.0,0.21198699]
[1644627500391,0.63323595,42350.0,42349.0,0.21198699]
[1644627501346,0.33180554,42350.0,42349.0,0.21198699]
[1644627505191,0.33180554,42350.0,42349.0,0.21958699]
[1644627505993,0.1554557,42352.0,42349.0,0.21958699]
[1644627506195,0.00047839,42352.0,42349.0,0.21958699]
[1644627506992,0.00027758,42356.0,42349.0,0.21958699]
[1644627506993,0.19975186,42356.0,42349.0,0.21958699]
[1644627507193,0.07019499,42355.0,42349.0,0.21958699]
[1644627507395,0.00047839,42353.0,42349.0,0.21958699]
[1644627508295,0.19975186,42356.0,42349.0,0.21958699]
[1644627508497,0.00047811,42353.0,42349.0,0.21958699]